[Event "EYTCC U18 Girls 2019"]
[Site "Pardubice"]
[Date "2019.07.11"]
[Round "1.25"]
[White "Urh, Zala"]
[Black "Salimova, Nurgyul"]
[Result "1/2-1/2"]
[ECO "E36"]
[WhiteElo "2072"]
[BlackElo "2416"]
[Annotator "NA"]
[PlyCount "82"]
[EventDate "2019.07.11"]
[EventType "swiss"]
[EventCountry "CZE"]
[SourceTitle "playchess.com"]
[Source "ChessBase"]
[SourceQuality "1"]
[WhiteTeam "Slovenia"]
[BlackTeam "Bulgaria"]
[WhiteTeamCountry "SLO"]
[BlackTeamCountry "BUL"]
[TimeControl "40/5400+30:1800+30"]

1. d4 {[%emt 0:00:00]} Nf6 {[%emt 0:00:00]} 2. c4 {[%emt 0:00:00]} e6 {[%emt 0:00:00]} 3. Nc3 {[%emt 0:00:00]} Bb4 {[%emt 0:00:00]} 4. Qc2 {[%emt 0:00:00]} d5 {[%emt 0:00:00]} 5. a3 {[%emt 0:00:14]} Bxc3+ {[%emt 0:00:09]} 6. Qxc3 {[%emt 0:00:07]} dxc4 {[%emt 0:00:22]} 7. Qxc4 {[%emt 0:00:14]} b6 {[%emt 0:00:57]} 8. Nf3 {[%emt 0:01:13]} Ba6 {[%emt 0:02:20]} 9. Qc2 {[%emt 0:01:15]} O-O {[%emt 0:02:29]} 10. h4 {[%emt 0:00:47]} Nbd7 {[%emt 0:10:35]} 11. h5 {[%emt 0:04:20]} h6 {[%emt 0:10:18]} 12. g4 {[%emt 0:05:53]} Nxg4 {[%emt 0:09:24]} 13. Rg1 {[%emt 0:04:33]} f5 {[%emt 0:02:08]} 14. Qc6 {[%emt 0:13:32]} Qe8 {[%emt 0:10:05]} 15. Bh3 {[%emt 0:02:27]} Ndf6 {[%emt 0:04:33]} 16. Qxe8 {[%emt 0:00:50]} Raxe8 {[%emt 0:07:21]} 17. Ne5 {[%emt 0:01:45]} Nxh5 {[%emt 0:07:10]} 18. Nxg4 {[%emt 0:05:34]} fxg4 {[%emt 0:00:06]} 19. Bxg4 {[%emt 0:00:08]} Nf4 {[%emt 0:05:50]} 20. Be3 {[%emt 0:06:22]} Kh8 {[%emt 0:09:50]} 21. Rc1 {[%emt 0:03:36]} Nd5 {[%emt 0:03:00]} 22. Rg3 {[%emt 0:01:50]} e5 {[%emt 0:03:56]} 23. dxe5 {[%emt 0:03:05]} Rxe5 {[%emt 0:00:47]} 24. Bd4 {[%emt 0:00:10]} Re7 {[%emt 0:01:49]} 25. Rc6 {[%emt 0:04:50]} Kh7 {[%emt 0:01:25]} 26. Re6 {[%emt 0:10:31]} g5 {[%emt 0:06:49]} 27. Rxe7+ {[%emt 0:03:13]} Nxe7 {[%emt 0:00:01]} 28. Re3 {[%emt 0:00:01]} Ng6 {[%emt 0:01:13]} 29. Bh5 {[%emt 0:05:27]} Bc8 {[%emt 0:00:44]} 30. b4 {[%emt 0:02:11]} Bf5 {[%emt 0:00:36]} 31. f3 {[%emt 0:02:11]} Rd8 {[%emt 0:00:32]} 32. Bb2 {[%emt 0:00:17]} c5 {[%emt 0:00:37]} 33. bxc5 {[%emt 0:01:41]} bxc5 {[%emt 0:00:01]} 34. Rb3 {[%emt 0:00:01]} Nf4 {[%emt 0:00:32]} 35. Bf7 {[%emt 0:02:58]} Rd7 {[%emt 0:00:30]} 36. Bc4 {[%emt 0:01:09]} Be6 {[%emt 0:00:27]} 37. Bxe6 {[%emt 0:02:25]} Nxe6 {[%emt 0:00:01]} 38. Rb8 {[%emt 0:00:15]} Nf4 {[%emt 0:01:03]} 39. Be5 {[%emt 0:02:22]} Ng6 {[%emt 0:00:45]} 40. Bg3 {[%emt 0:02:32]} h5 {[%emt 0:00:48]} 41. Rc8 {[%emt 0:30:34]} Ne7 {[%emt 0:13:35]} 1/2-1/2

[Event "EYTCC U18 Girls 2019"]
[Site "Pardubice"]
[Date "2019.07.11"]
[Round "1.26"]
[White "Antova, Gabriela"]
[Black "Hercog, Nusa"]
[Result "1-0"]
[ECO "D31"]
[WhiteElo "2257"]
[BlackElo "2053"]
[Annotator "NA"]
[PlyCount "79"]
[EventDate "2019.07.11"]
[EventType "swiss"]
[EventCountry "CZE"]
[SourceTitle "playchess.com"]
[Source "ChessBase"]
[SourceQuality "1"]
[WhiteTeam "Bulgaria"]
[BlackTeam "Slovenia"]
[WhiteTeamCountry "BUL"]
[BlackTeamCountry "SLO"]
[TimeControl "40/5400+30:1800+30"]

1. d4 {[%emt 0:00:00]} d5 {[%emt 0:00:00]} 2. c4 {[%emt 0:00:00]} c6 {[%emt 0:00:00]} 3. Nf3 {[%emt 0:00:00]} e6 {[%emt 0:00:00]} 4. Nc3 {[%emt 0:00:13]} dxc4 {[%emt 0:00:10]} 5. a4 {[%emt 0:01:48]} Bb4 {[%emt 0:00:16]} 6. e3 {[%emt 0:01:38]} b5 {[%emt 0:00:24]} 7. Bd2 {[%emt 0:00:25]} a5 {[%emt 0:00:32]} 8. axb5 {[%emt 0:00:40]} Bxc3 {[%emt 0:00:10]} 9. Bxc3 {[%emt 0:00:07]} cxb5 {[%emt 0:00:05]} 10. b3 {[%emt 0:00:06]} Bb7 {[%emt 0:00:23]} 11. bxc4 {[%emt 0:00:05]} b4 {[%emt 0:00:09]} 12. Bb2 {[%emt 0:00:03]} Nf6 {[%emt 0:00:38]} 13. Bd3 {[%emt 0:01:03]} O-O {[%emt 0:00:29]} 14. O-O {[%emt 0:00:17]} Nbd7 {[%emt 0:00:17]} 15. Nd2 {[%emt 0:02:40]} Qc7 {[%emt 0:00:28]} 16. f3 {[%emt 0:01:57]} h6 {[%emt 0:00:48]} 17. Bc2 {[%emt 0:15:54]} e5 {[%emt 0:08:40]} 18. Rf2 {[%emt 0:17:08]} Rfe8 {[%emt 0:03:05]} 19. Qf1 {[%emt 0:11:42]} exd4 {[%emt 0:05:37]} 20. exd4 {[%emt 0:00:07]} Nf8 {[%emt 0:09:11]} 21. Qd3 {[%emt 0:10:43]} N6d7 {[%emt 0:16:13]} 22. d5 {[%emt 0:04:36]} Qf4 {[%emt 0:02:29]} 23. Ne4 {[%emt 0:03:16]} f5 {[%emt 0:14:14]} 24. Qd4 {[%emt 0:00:54]} Qe5 {[%emt 0:25:02]} 25. Qxe5 {[%emt 0:01:02]} Rxe5 {[%emt 0:03:36]} 26. Nd6 {[%emt 0:03:44]} Bc8 {[%emt 0:00:46]} 27. Bxe5 {[%emt 0:01:13]} Nxe5 {[%emt 0:00:02]} 28. c5 {[%emt 0:03:33]} g6 {[%emt 0:02:30]} 29. c6 {[%emt 0:03:27]} Nf7 {[%emt 0:03:12]} 30. Nxc8 {[%emt 0:02:06]} Rxc8 {[%emt 0:00:05]} 31. Rxa5 {[%emt 0:00:06]} Nd6 {[%emt 0:00:06]} 32. Ra7 {[%emt 0:03:04]} Re8 {[%emt 0:01:52]} 33. Ra4 {[%emt 0:06:26]} Nh7 {[%emt 0:01:11]} 34. Rxb4 {[%emt 0:00:49]} Nf6 {[%emt 0:00:04]} 35. Kf1 {[%emt 0:01:07]} Kg7 {[%emt 0:00:18]} 36. Bb3 {[%emt 0:00:34]} Re5 {[%emt 0:00:33]} 37. Re2 {[%emt 0:01:30]} Nxd5 {[%emt 0:01:18]} 38. Rxe5 {[%emt 0:00:30]} Nxb4 {[%emt 0:00:05]} 39. c7 {[%emt 0:00:06]} g5 {[%emt 0:01:26]} 40. Re6 {[%emt 0:00:13]} 1-0

[Event "EYTCC U18 Girls 2019"]
[Site "Pardubice"]
[Date "2019.07.11"]
[Round "1.27"]
[White "Radeva, Viktoria"]
[Black "Koubova, Anna Marie"]
[Result "1-0"]
[ECO "B40"]
[WhiteElo "2247"]
[BlackElo "2094"]
[Annotator "NA"]
[PlyCount "75"]
[EventDate "2019.07.11"]
[EventType "swiss"]
[EventCountry "CZE"]
[SourceTitle "playchess.com"]
[Source "ChessBase"]
[SourceQuality "1"]
[WhiteTeam "Bulgaria"]
[BlackTeam "Czech Republic"]
[WhiteTeamCountry "BUL"]
[BlackTeamCountry "CZE"]
[TimeControl "40/5400+30:1800+30"]

1. e4 {[%emt 0:00:00]} c5 {[%emt 0:00:00]} 2. Nf3 {[%emt 0:00:00]} e6 {[%emt 0:00:00]} 3. d4 {[%emt 0:00:00]} cxd4 {[%emt 0:00:00]} 4. Nxd4 {[%emt 0:00:00]} Nf6 {[%emt 0:00:00]} 5. Nc3 {[%emt 0:00:00]} Nc6 {[%emt 0:00:06]} 6. Ndb5 {[%emt 0:00:06]} Bb4 {[%emt 0:00:10]} 7. a3 {[%emt 0:00:05]} Bxc3+ {[%emt 0:00:06]} 8. Nxc3 {[%emt 0:00:04]} d5 {[%emt 0:00:08]} 9. exd5 {[%emt 0:00:05]} exd5 {[%emt 0:00:06]} 10. Bd3 {[%emt 0:00:04]} O-O {[%emt 0:00:20]} 11. O-O {[%emt 0:00:10]} d4 {[%emt 0:00:12]} 12. Ne2 {[%emt 0:00:04]} Bg4 {[%emt 0:00:14]} 13. Bg5 {[%emt 0:00:14]} Qd6 {[%emt 0:03:10]} 14. Re1 {[%emt 0:00:18]} Rfe8 {[%emt 0:00:51]} 15. Qd2 {[%emt 0:03:29]} Bxe2 {[%emt 0:03:23]} 16. Rxe2 {[%emt 0:00:17]} Rxe2 {[%emt 0:00:08]} 17. Qxe2 {[%emt 0:04:55]} Re8 {[%emt 0:00:19]} 18. Qd2 {[%emt 0:06:54]} Ne5 {[%emt 0:07:29]} 19. Qf4 {[%emt 0:25:05]} Nh5 {[%emt 0:21:12]} 20. Qe4 {[%emt 0:05:34]} Qg6 {[%emt 0:00:39]} 21. Qxg6 {[%emt 0:05:37]} hxg6 {[%emt 0:00:38]} 22. Kf1 {[%emt 0:13:29]} Rc8 {[%emt 0:12:20]} 23. Ke2 {[%emt 0:07:18]} Rc5 {[%emt 0:03:01]} 24. Bd2 {[%emt 0:03:01]} b5 {[%emt 0:00:45]} 25. b3 {[%emt 0:11:02]} Nc6 {[%emt 0:09:07]} 26. b4 {[%emt 0:10:16]} Re5+ {[%emt 0:00:46]} 27. Kf1 {[%emt 0:00:11]} Nf6 {[%emt 0:03:27]} 28. a4 {[%emt 0:01:44]} bxa4 {[%emt 0:21:14]} 29. Rxa4 {[%emt 0:00:12]} Re7 {[%emt 0:04:25]} 30. b5 {[%emt 0:00:27]} Ne5 {[%emt 0:00:16]} 31. Rxd4 {[%emt 0:00:30]} Nxd3 {[%emt 0:00:15]} 32. Rxd3 {[%emt 0:00:58]} Rb7 {[%emt 0:01:34]} 33. c4 {[%emt 0:02:24]} Nd7 {[%emt 0:01:15]} 34. Be3 {[%emt 0:01:24]} Rc7 {[%emt 0:00:54]} 35. Rd5 {[%emt 0:00:47]} Nb6 {[%emt 0:00:58]} 36. Rd8+ {[%emt 0:00:03]} Kh7 {[%emt 0:00:10]} 37. c5 {[%emt 0:00:17]} Nc4 {[%emt 0:00:37]} 38. c6 {[%emt 0:01:10]} 1-0

[Event "EYTCC U18 Girls 2019"]
[Site "Pardubice"]
[Date "2019.07.11"]
[Round "1.28"]
[White "Laurincova, Kristyna"]
[Black "Krasteva, Beloslava"]
[Result "0-1"]
[ECO "B87"]
[WhiteElo "2010"]
[BlackElo "2327"]
[Annotator "NA"]
[PlyCount "108"]
[EventDate "2019.07.11"]
[EventType "swiss"]
[EventCountry "CZE"]
[SourceTitle "playchess.com"]
[Source "ChessBase"]
[SourceQuality "1"]
[WhiteTeam "Czech Republic"]
[BlackTeam "Bulgaria"]
[WhiteTeamCountry "CZE"]
[BlackTeamCountry "BUL"]
[TimeControl "40/5400+30:1800+30"]

1. e4 {[%emt 0:00:00]} c5 {[%emt 0:00:00]} 2. Nf3 {[%emt 0:00:00]} d6 {[%emt 0:00:05]} 3. d4 {[%emt 0:00:00]} cxd4 {[%emt 0:00:26]} 4. Nxd4 {[%emt 0:00:05]} Nf6 {[%emt 0:00:09]} 5. Nc3 {[%emt 0:00:12]} a6 {[%emt 0:00:16]} 6. Bc4 {[%emt 0:00:22]} e6 {[%emt 0:00:19]} 7. Bb3 {[%emt 0:00:15]} b5 {[%emt 0:00:22]} 8. O-O {[%emt 0:00:32]} Be7 {[%emt 0:00:32]} 9. Qf3 {[%emt 0:00:22]} Qc7 {[%emt 0:00:42]} 10. Qg3 {[%emt 0:00:24]} O-O {[%emt 0:00:26]} 11. Bh6 {[%emt 0:00:19]} Ne8 {[%emt 0:00:17]} 12. Rad1 {[%emt 0:00:28]} Bd7 {[%emt 0:00:43]} 13. f4 {[%emt 0:00:30]} Nc6 {[%emt 0:03:03]} 14. Nxc6 {[%emt 0:00:35]} Bxc6 {[%emt 0:00:26]} 15. f5 {[%emt 0:00:40]} Kh8 {[%emt 0:00:57]} 16. f6 {[%emt 0:00:31]} gxh6 {[%emt 0:00:35]} 17. fxe7 {[%emt 0:00:08]} Qxe7 {[%emt 0:00:05]} 18. Qf2 {[%emt 0:00:55]} Ng7 {[%emt 0:07:19]} 19. Qd4 {[%emt 0:02:19]} Rad8 {[%emt 0:03:27]} 20. Rf6 {[%emt 0:04:08]} b4 {[%emt 0:05:09]} 21. Ne2 {[%emt 0:09:56]} Bxe4 {[%emt 0:04:56]} 22. Rdf1 {[%emt 0:16:27]} d5 {[%emt 0:03:48]} 23. Qe5 {[%emt 0:12:49]} Kg8 {[%emt 0:08:18]} 24. Nd4 {[%emt 0:04:52]} Qd6 {[%emt 0:03:59]} 25. Qxd6 {[%emt 0:01:52]} Rxd6 {[%emt 0:00:11]} 26. Rxh6 {[%emt 0:00:41]} Bg6 {[%emt 0:01:42]} 27. Rh4 {[%emt 0:07:41]} a5 {[%emt 0:03:41]} 28. Nf3 {[%emt 0:10:17]} Nf5 {[%emt 0:01:48]} 29. Rf4 {[%emt 0:00:29]} Ne3 {[%emt 0:04:25]} 30. Rf2 {[%emt 0:12:17]} Nd1 {[%emt 0:07:38]} 31. Rf1 {[%emt 0:00:27]} Nxb2 {[%emt 0:02:31]} 32. Ne5 {[%emt 0:06:51]} a4 {[%emt 0:02:54]} 33. Nxg6 {[%emt 0:00:02]} hxg6 {[%emt 0:00:20]} 34. Rb1 {[%emt 0:00:08]} axb3 {[%emt 0:02:39]} 35. axb3 {[%emt 0:00:02]} d4 {[%emt 0:01:14]} 36. Rxb2 {[%emt 0:01:05]} e5 {[%emt 0:02:10]} 37. Re4 {[%emt 0:00:46]} Re8 {[%emt 0:00:11]} 38. Ra2 {[%emt 0:00:27]} f5 {[%emt 0:00:38]} 39. Rh4 {[%emt 0:02:50]} Kg7 {[%emt 0:06:37]} 40. Ra7+ {[%emt 0:00:11]} Kf6 {[%emt 0:00:13]} 41. Rc7 {[%emt 0:32:01]} e4 {[%emt 0:32:16]} 42. Kf1 {[%emt 0:03:57]} d3 {[%emt 0:03:50]} 43. cxd3 {[%emt 0:00:19]} Rxd3 {[%emt 0:00:37]} 44. Rh3 {[%emt 0:01:53]} Rxh3 {[%emt 0:00:54]} 45. gxh3 {[%emt 0:00:01]} Ke5 {[%emt 0:04:40]} 46. Rb7 {[%emt 0:00:42]} Kf4 {[%emt 0:00:18]} 47. Rxb4 {[%emt 0:00:00]} Kf3 {[%emt 0:00:00]} 48. Rc4 {[%emt 0:00:00]} Ra8 {[%emt 0:00:00]} 49. Ra4 {[%emt 0:00:00]} Rxa4 {[%emt 0:00:00]} 50. bxa4 {[%emt 0:00:00]} e3 {[%emt 0:00:00]} 51. a5 {[%emt 0:00:00]} e2+ {[%emt 0:00:00]} 52. Ke1 {[%emt 0:00:00]} Ke3 {[%emt 0:00:00]} 53. a6 {[%emt 0:00:00]} f4 {[%emt 0:00:00]} 54. a7 {[%emt 0:00:00]} f3 {[%emt 0:00:00]} 0-1

[Event "EYTCC U18 Girls 2019"]
[Site "Pardubice"]
[Date "2019.07.11"]
[Round "1.30"]
[White "Schneider, Jana"]
[Black "Nemcova, Karin"]
[Result "1/2-1/2"]
[ECO "B48"]
[WhiteElo "2216"]
[BlackElo "1956"]
[Annotator "NA"]
[PlyCount "97"]
[EventDate "2019.07.11"]
[EventType "swiss"]
[EventCountry "CZE"]
[SourceTitle "playchess.com"]
[Source "ChessBase"]
[SourceQuality "1"]
[WhiteTeam "Germany"]
[BlackTeam "Czech Republic"]
[WhiteTeamCountry "GER"]
[BlackTeamCountry "CZE"]
[TimeControl "40/5400+30:1800+30"]

1. e4 {[%emt 0:00:00]} c5 {[%emt 0:00:00]} 2. Nf3 {[%emt 0:00:00]} e6 {[%emt 0:00:00]} 3. d4 {[%emt 0:00:00]} cxd4 {[%emt 0:00:00]} 4. Nxd4 {[%emt 0:00:00]} Nc6 {[%emt 0:00:05]} 5. Nc3 {[%emt 0:00:00]} Qc7 {[%emt 0:00:06]} 6. Be3 {[%emt 0:00:10]} a6 {[%emt 0:00:08]} 7. Qf3 {[%emt 0:00:08]} Nf6 {[%emt 0:00:08]} 8. O-O-O {[%emt 0:00:22]} Be7 {[%emt 0:00:41]} 9. Be2 {[%emt 0:01:16]} d6 {[%emt 0:01:18]} 10. Nxc6 {[%emt 0:01:39]} Qxc6 {[%emt 0:01:03]} 11. g4 {[%emt 0:02:55]} O-O {[%emt 0:03:34]} 12. g5 {[%emt 0:02:10]} Nd7 {[%emt 0:02:13]} 13. h4 {[%emt 0:02:57]} b5 {[%emt 0:02:37]} 14. Bd3 {[%emt 0:06:06]} Bb7 {[%emt 0:03:41]} 15. Qh3 {[%emt 0:04:30]} Ne5 {[%emt 0:02:34]} 16. Kb1 {[%emt 0:03:03]} Rac8 {[%emt 0:02:53]} 17. Rd2 {[%emt 0:12:54]} b4 {[%emt 0:09:26]} 18. Ne2 {[%emt 0:00:23]} Nc4 {[%emt 0:01:17]} 19. Bxc4 {[%emt 0:00:37]} Qxc4 {[%emt 0:03:34]} 20. f3 {[%emt 0:00:48]} e5 {[%emt 0:07:44]} 21. Ng3 {[%emt 0:08:56]} d5 {[%emt 0:05:26]} 22. h5 {[%emt 0:09:38]} d4 {[%emt 0:09:27]} 23. g6 {[%emt 0:03:49]} h6 {[%emt 0:04:04]} 24. Bxh6 {[%emt 0:16:05]} gxh6 {[%emt 0:01:14]} 25. f4 {[%emt 0:04:51]} exf4 {[%emt 0:06:10]} 26. Nf5 {[%emt 0:00:11]} Bg5 {[%emt 0:00:19]} 27. Nd6 {[%emt 0:00:54]} Qc7 {[%emt 0:01:50]} 28. gxf7+ {[%emt 0:01:59]} Rxf7 {[%emt 0:02:46]} 29. Nxf7 {[%emt 0:00:37]} Qxf7 {[%emt 0:02:24]} 30. Rxd4 {[%emt 0:00:31]} Kh8 {[%emt 0:15:04]} 31. Rxb4 {[%emt 0:03:49]} f3 {[%emt 0:05:47]} 32. Rf1 {[%emt 0:03:15]} Qc7 {[%emt 0:00:32]} 33. c3 {[%emt 0:00:38]} a5 {[%emt 0:02:49]} 34. Rxb7 {[%emt 0:03:28]} Qxb7 {[%emt 0:00:25]} 35. Qxf3 {[%emt 0:00:26]} Rb8 {[%emt 0:01:18]} 36. Rf2 {[%emt 0:00:47]} Re8 {[%emt 0:00:38]} 37. Re2 {[%emt 0:00:47]} Qd7 {[%emt 0:00:46]} 38. Re1 {[%emt 0:01:21]} Rd8 {[%emt 0:02:01]} 39. e5 {[%emt 0:01:42]} Qd2 {[%emt 0:00:39]} 40. Qe2 {[%emt 0:01:26]} Kg7 {[%emt 0:02:46]} 41. Qxd2 {[%emt 0:32:05]} Rxd2 {[%emt 0:30:26]} 42. e6 {[%emt 0:00:25]} Be7 {[%emt 0:00:00]} 43. Re5 {[%emt 0:00:00]} Kf6 {[%emt 0:00:00]} 44. Rxa5 {[%emt 0:00:00]} Kxe6 {[%emt 0:00:00]} 45. c4 {[%emt 0:00:00]} Bg5 {[%emt 0:00:00]} 46. Rb5 {[%emt 0:00:00]} Rh2 {[%emt 0:00:00]} 47. a4 {[%emt 0:00:00]} Kd6 {[%emt 0:00:00]} 48. a5 {[%emt 0:00:00]} Be3 {[%emt 0:00:00]} 49. b4 {[%emt 0:00:00] Kd5} 1/2-1/2

[Event "EYTCC U18 Girls 2019"]
[Site "Pardubice"]
[Date "2019.07.11"]
[Round "1.32"]
[White "Sankova, Stella"]
[Black "Ciolacu, Alessia-Mihaela"]
[Result "1/2-1/2"]
[ECO "C55"]
[WhiteElo "1997"]
[BlackElo "2199"]
[Annotator "NA"]
[PlyCount "61"]
[EventDate "2019.07.11"]
[EventType "swiss"]
[EventCountry "CZE"]
[SourceTitle "playchess.com"]
[Source "ChessBase"]
[SourceQuality "1"]
[WhiteTeam "Slovakia"]
[BlackTeam "Romania"]
[WhiteTeamCountry "SVK"]
[BlackTeamCountry "ROU"]
[TimeControl "40/5400+30:1800+30"]

1. e4 {[%emt 0:00:00]} e5 {[%emt 0:00:00]} 2. Nf3 {[%emt 0:00:00]} Nc6 {[%emt 0:00:00]} 3. Bc4 {[%emt 0:00:00]} Nf6 {[%emt 0:00:00]} 4. d3 {[%emt 0:00:01]} Be7 {[%emt 0:00:08]} 5. c3 {[%emt 0:00:44]} d6 {[%emt 0:00:17]} 6. Bb3 {[%emt 0:00:38]} O-O {[%emt 0:00:15]} 7. O-O {[%emt 0:00:16]} Na5 {[%emt 0:00:33]} 8. Bc2 {[%emt 0:00:23]} c5 {[%emt 0:00:23]} 9. a3 {[%emt 0:00:44]} Nc6 {[%emt 0:01:52]} 10. Re1 {[%emt 0:04:11]} Qc7 {[%emt 0:01:20]} 11. b4 {[%emt 0:02:53]} a6 {[%emt 0:07:57]} 12. Nbd2 {[%emt 0:06:26]} Be6 {[%emt 0:02:27]} 13. Bb2 {[%emt 0:03:51]} Rac8 {[%emt 0:21:24]} 14. Rc1 {[%emt 0:02:52]} Qb6 {[%emt 0:12:02]} 15. d4 {[%emt 0:13:25]} cxd4 {[%emt 0:19:18]} 16. cxd4 {[%emt 0:00:08]} exd4 {[%emt 0:07:07]} 17. Nb3 {[%emt 0:02:04]} Ng4 {[%emt 0:09:37]} 18. Nbxd4 {[%emt 0:13:51]} Nce5 {[%emt 0:03:57]} 19. h3 {[%emt 0:10:37]} Nc4 {[%emt 0:01:22]} 20. Ba1 {[%emt 0:04:23]} Nge5 {[%emt 0:00:47]} 21. Bb3 {[%emt 0:12:34]} Bd7 {[%emt 0:02:46]} 22. Nxe5 {[%emt 0:02:33]} Nxe5 {[%emt 0:00:17]} 23. Qd2 {[%emt 0:03:08]} Bf6 {[%emt 0:02:23]} 24. Kh1 {[%emt 0:05:20]} Ng6 {[%emt 0:00:39]} 25. Red1 {[%emt 0:03:10]} Be5 {[%emt 0:00:17]} 26. Rxc8 {[%emt 0:00:29]} Rxc8 {[%emt 0:00:42]} 27. Qa2 {[%emt 0:00:59]} Rf8 {[%emt 0:00:39]} 28. Nf3 {[%emt 0:00:24]} Qc7 {[%emt 0:01:29]} 29. Bxe5 {[%emt 0:01:56]} dxe5 {[%emt 0:00:23]} 30. Qd2 {[%emt 0:04:03]} Bc6 {[%emt 0:00:24]} 31. Qe3 {[%emt 0:01:29]} 1/2-1/2

[Event "EYTCC U18 Girls 2019"]
[Site "Pardubice"]
[Date "2019.07.11"]
[Round "1.34"]
[White "Sowa, Wiktoria"]
[Black "Gresova, Zuzana"]
[Result "0-1"]
[ECO "B53"]
[WhiteElo "2108"]
[BlackElo "1919"]
[Annotator "NA"]
[PlyCount "88"]
[EventDate "2019.07.11"]
[EventType "swiss"]
[EventCountry "CZE"]
[SourceTitle "playchess.com"]
[Source "ChessBase"]
[SourceQuality "1"]
[WhiteTeam "Poland"]
[BlackTeam "Czech Republic"]
[WhiteTeamCountry "POL"]
[BlackTeamCountry "CZE"]
[TimeControl "40/5400+30:1800+30"]

1. e4 c5 {[%emt 0:00:00]} 2. Nf3 {[%emt 0:00:00]} d6 {[%emt 0:00:00]} 3. d4 {[%emt 0:00:09]} cxd4 {[%emt 0:00:01]} 4. Qxd4 {[%emt 0:00:15]} Nc6 {[%emt 0:00:37]} 5. Bb5 {[%emt 0:00:25]} Bd7 {[%emt 0:00:22]} 6. Bxc6 {[%emt 0:00:24]} Bxc6 {[%emt 0:00:50]} 7. Nc3 {[%emt 0:00:34]} e6 {[%emt 0:01:56]} 8. Bg5 {[%emt 0:01:18]} Nf6 {[%emt 0:02:46]} 9. Qd3 {[%emt 0:01:25]} Be7 {[%emt 0:04:51]} 10. Nd4 {[%emt 0:01:24]} Qa5 {[%emt 0:07:42]} 11. Bd2 {[%emt 0:04:25]} Qc7 {[%emt 0:04:10]} 12. O-O-O {[%emt 0:02:14]} a6 {[%emt 0:02:41]} 13. f4 {[%emt 0:06:02]} b5 {[%emt 0:04:08]} 14. a3 {[%emt 0:02:56]} O-O {[%emt 0:04:45]} 15. f5 {[%emt 0:04:27]} Bd7 {[%emt 0:05:20]} 16. Bg5 {[%emt 0:03:06]} Rfd8 {[%emt 0:04:12]} 17. g4 {[%emt 0:06:08]} b4 {[%emt 0:08:44]} 18. axb4 {[%emt 0:03:06]} Rab8 {[%emt 0:02:02]} 19. h4 {[%emt 0:03:12]} Rxb4 {[%emt 0:02:06]} 20. Qxa6 {[%emt 0:14:10]} Rdb8 {[%emt 0:03:33]} 21. Nb3 {[%emt 0:02:57]} Bc6 {[%emt 0:03:45]} 22. Rhe1 {[%emt 0:09:05]} h6 {[%emt 0:03:24]} 23. Bxf6 {[%emt 0:02:07]} Bxf6 {[%emt 0:00:55]} 24. g5 {[%emt 0:06:01]} hxg5 {[%emt 0:02:24]} 25. hxg5 {[%emt 0:02:03]} Bxg5+ {[%emt 0:03:14]} 26. Kb1 {[%emt 0:00:04]} Bf6 {[%emt 0:02:21]} 27. Qd3 {[%emt 0:01:52]} Qb7 {[%emt 0:06:18]} 28. fxe6 {[%emt 0:02:20]} Bxc3 {[%emt 0:05:29]} 29. exf7+ {[%emt 0:04:26]} Qxf7 {[%emt 0:00:47]} 30. Qxc3 {[%emt 0:00:19]} Bxe4 {[%emt 0:01:16]} 31. Rxe4 {[%emt 0:09:03]} Rxe4 {[%emt 0:01:00]} 32. Qd3 {[%emt 0:00:46]} Qe6 {[%emt 0:04:22]} 33. Nd4 {[%emt 0:01:23]} Qd5 {[%emt 0:01:29]} 34. c4 {[%emt 0:01:03]} Qb7 {[%emt 0:00:32]} 35. Nb5 {[%emt 0:01:28]} d5 {[%emt 0:01:05]} 36. Qa3 {[%emt 0:04:46]} Qb6 {[%emt 0:02:08]} 37. Nc3 {[%emt 0:01:13]} Rxc4 {[%emt 0:00:54]} 38. Nxd5 {[%emt 0:00:04]} Qg6+ {[%emt 0:03:09]} 39. Ka1 {[%emt 0:00:53]} Qh6 {[%emt 0:01:05]} 40. Ka2 {[%emt 0:01:18]} Kh8 {[%emt 0:01:35]} 41. Qf3 {[%emt 0:30:41]} Rh4 {[%emt 0:31:27]} 42. Ne7 {[%emt 0:00:38]} Qa6+ {[%emt 0:00:41]} 43. Kb1 {[%emt 0:00:24]} Rh2 {[%emt 0:00:39]} 44. Rh1 {[%emt 0:00:00]} Rbxb2+ {[%emt 0:00:00]} 0-1